bitfinex/quotes_ETHUSD_20220202
["timestamp","ask_amount","ask_price","bid_price","bid_amount"]
[1643766133111,1.53265581,2758.7,2758.0,0.97709589]
[1643766133362,1.53265581,2758.7,2758.0,0.79589589]
[1643766133752,1.83265581,2758.7,2758.0,0.79589589]
[1643766133954,1.53265581,2758.6,2758.0,0.79589589]
[1643766134154,2.12322145,2758.5,2758.0,0.79589589]
[1643766134353,1.53265581,2758.4,2758.0,0.79589589]
[1643766134560,0.1812,2758.6,2758.0,0.79589589]
[1643766134958,1.53276205,2758.5,2758.0,0.79589589]
[1643766135258,0.1812,2758.7,2758.0,0.79589589]
[1643766135457,1.53272516,2758.6,2758.0,0.79589589]
[1643766136558,2.07081294,2758.5,2758.0,0.79589589]
[1643766136958,1.53272516,2758.4,2758.0,0.79589589]
[1643766137504,2.70138142,2758.7,2757.8,1.1974]
[1643766137707,0.42868861,2758.4,2757.7,0.59237664]
[1643766137906,3.81854963,2758.3,2757.7,0.41117664]
[1643766138106,2.28569082,2758.3,2757.7,0.41117664]
[1643766138706,2.28569082,2758.3,2757.6,0.4812]
[1643766138912,2.28569082,2758.3,2757.6,0.3]
[1643766138913,1.89543477,2758.2,2757.6,0.3]
[1643766139209,1.0,2758.0,2757.6,0.3]
[1643766139411,4.63709505,2757.9,2757.6,0.3]
[1643766139611,1.83297477,2757.8,2757.6,0.3]
[1643766139817,9.49088086,2757.7,2757.6,0.3]
[1643766140016,6.65,2757.6,2756.5,0.1812]
[1643766140213,6.65,2757.6,2756.2,0.14636046]
[1643766140214,1.71454624,2757.5,2756.3,0.1812]
[1643766140514,1.71454624,2757.5,2756.2,0.14636046]
[1643766140515,2.23760624,2757.4,2756.2,0.14636046]
[1643766140714,0.1812,2757.3,2756.2,0.145039]
[1643766140954,0.94457244,2757.2,2756.8,0.80010153]
[1643766141157,0.1812,2757.1,2756.8,0.80010153]
[1643766141354,0.18126,2756.9,2756.2,0.145039]
[1643766141956,0.18126,2756.9,2756.1,0.4812]
[1643766142658,0.18126,2756.9,2756.8,0.84608561]
[1643766143056,0.18126,2756.9,2756.1,0.4812]
[1643766143257,0.18126,2756.9,2756.8,0.33010651]
[1643766143460,0.1812,2757.1,2756.8,0.33010651]
[1643766143662,0.1812,2757.3,2756.8,0.33010651]
[1643766143856,0.1812,2757.3,2756.8,0.63010651]
[1643766144056,3.82119997,2757.7,2756.8,0.63010651]
[1643766144057,0.1812,2757.6,2756.8,0.63010651]
[1643766144256,0.1812,2757.6,2757.3,0.73279585]
[1643766146219,0.1812,2757.6,2757.3,1.03279585]
[1643766146421,0.1812,2758.0,2757.3,1.03279585]
[1643766147122,0.1812,2758.0,2757.9,0.89728846]
[1643766147319,0.1812,2758.1,2757.9,1.2261575]
[1643766147920,0.18126,2758.4,2757.9,1.2261575]
[1643766147921,0.1812,2758.3,2757.9,1.2261575]
[1643766149367,0.18126,2758.7,2757.9,1.2261575]
[1643766149563,0.1812,2758.6,2757.9,1.2261575]
[1643766150965,0.1812,2758.6,2758.4,0.68326508]
[1643766151866,0.1812,2758.6,2757.9,1.23522824]
[1643766152102,0.18126,2758.7,2757.9,1.23522824]
[1643766153106,0.18126,2758.7,2758.2,0.78176346]
[1643766153311,0.1812,2758.9,2758.2,0.78176346]
[1643766155709,0.1812,2758.9,2758.2,1.08176346]
[1643766156157,0.1812,2759.0,2758.2,1.98804286]
[1643766156351,1.5325928,2758.9,2758.2,1.08176346]
[1643766156751,0.18126,2758.8,2758.2,0.78176346]
[1643766158557,0.1812,2759.0,2758.2,1.08176346]
[1643766159256,0.1812,2759.0,2758.2,0.78176346]
[1643766159457,0.18126,2758.9,2758.2,0.78176346]
[1643766159710,0.48126,2758.9,2758.2,0.78176346]
[1643766160313,0.18126,2758.9,2758.2,0.78176346]
[1643766160525,1.53262286,2758.8,2758.2,0.78176346]
[1643766160712,0.3,2758.7,2758.2,0.78176346]
[1643766161316,0.18126,2758.9,2758.2,0.78176346]
[1643766162116,1.53261251,2758.8,2758.2,0.78176346]
[1643766162320,0.3,2758.7,2758.2,0.78176346]
[1643766162716,0.18126,2758.9,2758.2,0.78176346]
[1643766162919,1.53261224,2758.8,2758.2,0.78176346]
[1643766163348,1.53176396,2758.8,2758.0,0.1812]
[1643766163551,1.71296396,2758.8,2758.0,0.1812]
[1643766163748,0.1812,2758.8,2758.0,0.1812]
[1643766165156,0.1812,2758.8,2758.0,1.08751]
[1643766165357,0.1812,2758.8,2758.5,0.7913559]
[1643766165556,0.1812,2759.0,2758.5,0.7913559]
[1643766165762,0.1812,2759.0,2758.1,0.3]
[1643766165959,2.35600646,2759.0,2758.1,0.3]
[1643766166156,0.18126,2758.9,2758.0,0.1812]
[1643766166357,0.1812,2758.8,2758.0,0.1812]
[1643766166956,0.93441009,2758.8,2758.0,0.1812]
[1643766167206,2.31888508,2758.7,2757.9,0.1812]
[1643766167408,0.32806827,2758.1,2757.9,0.1812]
[1643766167809,2.27092711,2758.0,2757.9,0.1812]
[1643766168005,2.10426546,2758.0,2757.9,0.1812]
[1643766168206,0.50926827,2758.1,2757.9,0.1812]
[1643766168609,0.18126,2758.2,2757.9,0.1812]
[1643766168908,0.1812,2758.4,2757.9,0.1812]
[1643766170511,0.38177951,2758.1,2757.9,0.1812]
[1643766170711,0.1812,2758.4,2757.9,0.1812]
[1643766171562,0.40675049,2758.1,2757.9,0.1812]
[1643766171761,0.1812,2758.4,2757.7,0.83984284]
[1643766173364,0.37968934,2758.3,2757.7,0.83984284]
[1643766173967,0.1812,2758.4,2757.7,0.83984284]
[1643766174167,0.18126,2758.5,2757.7,1.02104284]
[1643766175909,0.40378032,2758.4,2757.7,1.02104284]
[1643766176110,0.40378032,2758.4,2757.7,1.32104284]
[1643766177509,0.18126,2758.5,2757.7,1.32104284]
[1643766177710,0.18126,2758.5,2757.7,2.22746554]
[1643766178658,0.31924671,2758.4,2757.7,1.92746554]
[1643766179251,0.18126,2758.5,2757.7,1.92746554]
[1643766179855,0.18126,2758.5,2757.7,2.22746554]
[1643766180258,0.18126,2758.5,2758.3,0.77683694]
[1643766180457,0.53265623,2758.5,2758.3,0.77683694]
[1643766180660,0.35139623,2758.5,2758.3,0.77683694]
[1643766181459,0.35139623,2758.5,2757.7,2.6288227]
[1643766181661,0.35139623,2758.5,2757.7,1.7224]
[1643766181859,2.47189719,2758.7,2757.7,1.7224]
[1643766182110,0.1812,2758.7,2757.7,1.4224]
[1643766182315,0.18126,2758.6,2757.7,1.4224]
[1643766182514,0.1812,2758.5,2757.7,1.4224]
[1643766182712,0.1812,2758.5,2758.3,0.67863244]
[1643766182914,0.40399635,2758.6,2758.3,0.67863244]
[1643766183111,0.1812,2758.5,2758.3,0.67863244]
[1643766183313,0.1812,2758.5,2757.7,1.4224]
[1643766183917,0.1812,2758.6,2757.7,1.4224]
[1643766184213,1.53276027,2758.5,2757.7,1.4224]
[1643766184415,1.53276027,2758.5,2758.3,0.89051228]
[1643766184820,1.53276027,2758.5,2757.7,0.1812]
[1643766185019,0.18126,2758.4,2757.7,0.1812]
[1643766185856,2.43487096,2758.7,2757.7,0.1812]
[1643766185857,0.1812,2758.7,2757.8,0.68927633]
[1643766186057,0.1812,2758.8,2757.8,0.68927633]
[1643766186257,1.5326606,2758.7,2757.8,0.98927633]
[1643766186460,0.1812,2758.6,2757.8,0.68927633]
[1643766186656,1.5326606,2758.5,2757.8,0.68927633]
[1643766187059,0.1812,2758.7,2757.8,0.68927633]
[1643766187256,1.53275718,2758.6,2757.8,0.98927633]
[1643766187656,1.71401718,2758.6,2757.8,0.68927633]
[1643766187856,1.53275718,2758.5,2757.8,0.68927633]
[1643766189457,1.71395718,2758.5,2757.8,0.68927633]
[1643766189711,1.53275718,2758.4,2757.8,0.68927633]
[1643766191619,1.53275718,2758.4,2758.3,0.87865465]
[1643766192413,1.53275718,2758.6,2758.3,0.87865465]
[1643766192620,1.71395718,2758.5,2758.3,0.87865465]
[1643766192816,1.53275718,2758.4,2757.7,0.1812]
[1643766193016,1.53275718,2758.3,2757.7,0.1812]
[1643766193215,0.1812,2758.7,2757.7,0.1812]
[1643766193457,1.53267099,2758.6,2757.7,0.1812]
[1643766193659,0.1812,2758.5,2757.7,0.1812]
[1643766193857,1.53267099,2758.4,2758.0,0.91243228]
[1643766194262,1.53267099,2758.3,2758.0,0.91243228]
[1643766194459,0.1812,2758.5,2758.0,0.91243228]
[1643766194665,1.71402792,2758.4,2758.0,0.91243228]
[1643766194866,1.53276792,2758.3,2758.0,0.91243228]
[1643766195966,1.53276792,2758.3,2757.7,0.1812]
[1643766196567,1.53276792,2758.2,2757.7,0.1812]
[1643766196772,0.18126,2758.4,2757.7,0.1812]
[1643766196967,1.71398024,2758.3,2757.7,0.1812]
[1643766197202,1.53278024,2758.2,2757.8,0.8332972]
[1643766197400,1.53278024,2758.4,2757.8,0.8332972]
[1643766197602,0.1812,2758.3,2757.8,0.8332972]
[1643766197802,1.53278024,2758.2,2757.8,0.8332972]
[1643766198204,0.1812,2758.5,2757.8,0.8332972]
[1643766198405,1.53274867,2758.4,2757.8,0.8332972]
[1643766198604,0.1812,2758.3,2757.8,0.8332972]
[1643766198805,1.53274867,2758.2,2757.8,0.8332972]
[1643766199308,0.1812,2758.5,2757.8,0.8332972]
[1643766199503,1.53272789,2758.4,2757.8,0.8332972]
[1643766199709,0.1812,2758.3,2757.8,0.8332972]
[1643766200109,1.53272987,2758.2,2757.8,0.8332972]
[1643766200311,0.1812,2758.5,2757.8,0.8332972]
[1643766200511,1.53273177,2758.4,2757.8,0.8332972]
[1643766200858,0.1812,2758.3,2757.8,0.8332972]
[1643766201257,0.1812,2758.5,2757.8,0.8332972]
[1643766201459,1.53148342,2758.4,2757.8,0.8332972]
[1643766201656,0.1812,2758.3,2757.8,0.8332972]
[1643766202159,0.1812,2758.4,2757.8,0.8332972]
[1643766202760,0.36246,2758.4,2757.8,0.8332972]
[1643766205715,2.10443166,2758.3,2757.5,1.8128222]
[1643766205915,0.1812,2758.2,2757.4,0.25]
[1643766206113,0.1812,2758.2,2757.3,0.1812]
[1643766206315,0.1812,2758.2,2757.3,0.4812]
[1643766206512,0.1812,2758.2,2757.3,0.1812]
[1643766206713,0.36246,2758.2,2757.7,0.78481321]
[1643766207314,0.38907897,2757.9,2757.7,0.78481321]
[1643766207914,0.36246,2758.2,2757.7,0.78481321]
[1643766209056,0.37843837,2758.0,2757.7,0.78481321]
[1643766210262,0.37843837,2758.0,2757.2,2.4684]
[1643766210560,0.37843837,2758.0,2757.2,1.2462]
[1643766210561,0.55963837,2758.0,2757.2,1.2462]
[1643766210759,0.55963837,2758.0,2757.2,1.5462]
[1643766210959,0.37843837,2758.0,2757.2,1.5462]
[1643766211361,2.1390434,2757.9,2757.1,3.5493]
[1643766211662,2.3202434,2757.9,2757.3,0.85647983]
[1643766212339,2.3202434,2757.9,2757.3,1.21887983]
[1643766212537,2.23470653,2757.9,2757.3,1.21887983]
[1643766213134,0.1812,2757.9,2757.3,1.21887983]
[1643766214236,0.43126,2757.8,2757.3,0.3624]
[1643766214434,2.50133492,2757.7,2757.3,0.3624]
[1643766215239,0.18126,2757.6,2756.8,0.3624]
[1643766215442,0.18126,2757.6,2757.0,0.75580878]
[1643766216055,0.40890696,2757.1,2757.0,0.75580878]
[1643766216557,0.18126,2757.6,2757.0,0.75580878]
[1643766217861,0.39710982,2757.3,2757.0,0.75580878]
[1643766218462,0.39710982,2757.3,2757.1,0.3624]
[1643766219163,0.18126,2757.6,2757.1,0.3624]
[1643766219363,0.1812,2757.7,2757.1,0.3624]
[1643766220208,0.43388047,2757.5,2757.1,0.3624]
[1643766223213,1.69724047,2757.5,2757.1,0.3624]
[1643766223469,1.99724047,2757.5,2757.1,0.3624]
[1643766223764,1.99724047,2757.5,2756.7,1.1959]
[1643766223765,1.71448717,2757.4,2756.8,0.3624]
[1643766223970,0.18027788,2757.4,2756.8,0.3124]
[1643766224164,1.18027788,2757.4,2756.8,0.3124]
[1643766224365,3.27119452,2757.4,2756.8,0.3124]
[1643766224574,0.18126,2757.3,2756.8,0.3124]
[1643766224770,0.1812,2757.2,2756.8,0.3124]
[1643766226568,0.18126,2757.1,2756.8,0.3124]
[1643766227218,0.18126,2757.1,2756.8,0.2124]
[1643766227615,0.18126,2757.1,2756.6,0.2124]
[1643766227923,0.1812,2757.2,2756.6,0.5124]
[1643766228117,0.1812,2757.4,2756.7,0.31787023]
[1643766228521,0.1812,2757.4,2757.1,0.92421199]
[1643766229316,0.1812,2757.4,2756.6,4.1395674]
[1643766229515,0.1812,2757.4,2756.8,0.906845]
[1643766229719,0.1812,2757.4,2756.8,1.206845]
[1643766229919,0.1812,2757.4,2756.6,3.8395674]
[1643766230119,0.43388047,2757.5,2756.6,4.1395674]
[1643766230318,0.43388047,2757.5,2757.0,0.71121144]
[1643766230719,0.43388047,2757.5,2757.1,0.2124]
[1643766232064,0.1812,2757.4,2757.1,0.2124]
[1643766234168,0.1312,2757.4,2757.1,0.2124]
[1643766234604,0.43388047,2757.5,2757.1,0.2124]
[1643766234813,1.34083047,2757.5,2757.1,0.2124]
[1643766235211,0.73388047,2757.5,2757.1,0.2124]
[1643766235612,0.43388047,2757.5,2757.1,0.2124]
[1643766235816,0.1812,2757.4,2757.1,0.2124]
[1643766236814,0.18126,2757.7,2757.1,0.2124]
[1643766236815,0.1812,2757.6,2757.1,0.2124]
[1643766238116,2.13333,2758.0,2757.1,0.2124]
[1643766238117,0.1812,2757.8,2757.1,0.2124]
[1643766238358,0.1812,2757.9,2757.1,0.2124]
[1643766238953,0.1812,2757.9,2757.1,0.1124]
[1643766239152,0.52011677,2757.9,2757.1,0.1124]
[1643766239459,0.1812,2757.9,2757.1,0.1124]
[1643766240059,1.53306367,2757.8,2757.1,0.1124]
[1643766240260,2.08820215,2757.7,2757.1,0.1124]
[1643766240458,0.41981394,2757.7,2757.1,0.1124]
[1643766240866,2.40455682,2757.9,2757.1,0.1124]
[1643766241259,0.1812,2757.9,2757.1,0.1124]
[1643766241458,1.53303802,2757.8,2757.1,0.1124]
[1643766241859,0.38114892,2757.6,2757.1,0.1124]
[1643766242104,0.1812,2757.7,2757.1,0.1124]
[1643766242302,2.23651704,2757.9,2757.1,0.1124]
[1643766242303,0.1812,2757.8,2757.1,0.1124]
[1643766242902,1.53309771,2757.7,2757.1,0.1124]
[1643766243103,1.71435771,2757.7,2757.1,0.1124]
[1643766243303,2.09869174,2757.6,2757.1,0.1124]
[1643766243706,1.71440528,2757.5,2757.1,0.1124]
[1643766243905,3.86071636,2757.4,2757.1,0.1124]
[1643766244106,6.53126,2757.2,2757.0,0.1124]
[1643766244405,2.36970004,2757.1,2757.0,0.1124]
[1643766244605,3.10950203,2757.2,2757.0,0.1124]
[1643766244810,0.71566,2757.2,2757.0,0.1124]
[1643766245207,0.34049,2757.1,2757.0,0.1124]
[1643766245408,0.52169,2757.1,2757.0,0.1124]
[1643766245865,0.70295,2757.1,2757.0,0.1124]
[1643766246067,0.18126,2757.1,2757.0,0.1124]
[1643766247060,0.54922082,2757.1,2757.0,0.1124]
[1643766247261,0.54922082,2757.1,2756.6,0.1124]
[1643766247859,0.18126,2757.1,2756.6,0.1124]
[1643766248960,0.59581525,2757.1,2756.6,0.1124]
[1643766249363,0.13126,2757.1,2756.6,0.1124]
[1643766255362,0.13126,2757.1,2756.6,0.0124]
[1643766255763,0.13126,2757.1,2756.4,5.83728125]
[1643766255764,0.13126,2757.1,2756.5,0.0124]
[1643766258007,0.13126,2757.1,2756.6,0.906896]
[1643766258607,0.1812,2757.4,2756.6,0.906896]
[1643766258811,0.1812,2757.5,2756.7,2.30815207]
[1643766259014,0.1812,2757.8,2757.6,0.82462851]
[1643766259215,1.5330537,2757.7,2757.6,0.82462851]
[1643766259409,1.7142537,2757.7,2757.6,0.82462851]
[1643766259609,1.7142537,2757.7,2757.5,0.32079728]
[1643766259816,1.7142537,2757.6,2756.9,1.8134048]
[1643766260119,1.7142537,2757.6,2756.8,0.1812]
[1643766260120,1.01281518,2757.4,2756.8,0.1812]
[1643766260316,4.37810753,2757.3,2756.8,0.1812]
[1643766260517,1.7142537,2757.2,2756.8,0.1812]
[1643766260717,4.11914365,2757.1,2756.8,0.1812]
[1643766260959,0.47006143,2756.9,2756.8,0.1812]
[1643766261160,1.6643137,2756.9,2756.8,0.1812]
[1643766261361,0.1812,2757.2,2756.8,0.1812]
[1643766261561,4.8475,2757.6,2756.8,0.1812]
[1643766261562,0.1812,2757.5,2756.8,0.1812]
[1643766261960,0.1812,2757.5,2756.9,0.0124]
[1643766262162,1.53324372,2757.4,2756.9,0.0124]
[1643766262365,0.1812,2757.3,2756.9,0.0124]
[1643766262561,1.53324372,2757.2,2756.9,0.0124]
[1643766265022,1.53324372,2757.2,2756.6,0.0124]
[1643766267031,3.63400463,2757.2,2756.6,0.0124]
[1643766267226,1.53324372,2757.1,2756.6,0.0124]
[1643766267427,1.66450372,2757.1,2756.6,0.0124]
[1643766267726,1.53324372,2757.0,2756.6,0.0124]
[1643766268126,0.13126,2757.1,2756.6,0.0124]
[1643766268558,2.52407485,2757.3,2756.6,0.0124]
[1643766269258,2.82407485,2757.3,2756.6,0.0124]
[1643766270064,2.82407485,2757.3,2756.5,0.0124]
[1643766270263,0.13126,2757.2,2756.5,0.0124]
[1643766271264,1.13126,2757.2,2756.5,0.0124]
[1643766271464,2.06123051,2757.1,2756.5,0.0124]
[1643766271664,2.36123051,2757.1,2756.5,0.0124]
[1643766272709,0.13126,2757.0,2756.5,0.0124]
[1643766285963,0.13126,2757.0,2756.4,0.0124]
[1643766288212,1.83349865,2756.9,2756.4,0.0124]
[1643766288411,0.3,2756.9,2756.4,0.0124]
[1643766288614,1.13126,2757.0,2756.4,0.45984792]
[1643766288811,1.53348087,2756.9,2756.4,0.0124]
[1643766289011,0.13126,2756.8,2756.4,0.0124]
[1643766292658,0.1812,2757.1,2756.4,0.91932]
[1643766292659,0.13030712,2757.0,2756.4,0.91932]
[1643766292860,0.13030712,2757.0,2756.5,0.9068608]
[1643766293066,0.1812,2757.2,2756.5,0.9068608]
[1643766293262,0.1812,2757.5,2756.6,1.0166]
[1643766293461,0.13030712,2757.6,2757.2,0.33264235]
[1643766293462,1.53320169,2757.4,2757.2,0.33264235]
[1643766293665,0.13030712,2757.6,2757.2,0.33264235]
[1643766293860,1.53314024,2757.5,2757.2,1.22380856]
[1643766294059,1.53314024,2757.5,2757.2,2.13047836]
[1643766294258,1.53314024,2757.5,2757.2,1.22380856]
[1643766294910,1.53314024,2757.5,2757.2,0.89116621]
[1643766297116,1.53314024,2757.5,2757.3,0.0124]
[1643766298972,1.48314024,2757.5,2757.3,0.0124]
[1643766299380,1.48314024,2757.5,2756.8,3.193144]
[1643766299381,2.17922133,2757.4,2756.8,3.193144]
[1643766299574,2.04891421,2757.4,2756.8,3.011944]
[1643766299775,2.48873296,2757.6,2756.8,3.011944]
[1643766299976,0.1812,2757.5,2756.8,3.011944]
[1643766300379,0.1812,2757.5,2757.3,0.82902827]
[1643766300583,0.1812,2757.5,2756.8,3.011944]
[1643766301477,0.1812,2757.5,2756.9,0.44391987]
[1643766301878,0.1812,2757.5,2756.8,3.918734]
[1643766303019,0.1812,2757.5,2756.9,1.58040734]
[1643766305326,0.61150712,2757.5,2756.9,0.67362064]
[1643766305725,0.31150712,2757.5,2756.9,0.67362064]
[1643766306555,0.26150712,2757.5,2756.9,0.67362064]
[1643766306757,1.16838712,2757.5,2756.9,0.67362064]
[1643766307157,0.3,2757.4,2756.9,0.67362064]
[1643766307358,0.3,2757.4,2756.8,2.21137372]
[1643766307359,0.13030712,2757.3,2756.8,1.813444]
[1643766308259,0.13030712,2757.3,2756.8,2.18466612]
[1643766308459,0.13030712,2757.3,2756.9,0.89452913]
[1643766308859,0.13030712,2757.3,2756.8,1.813444]
[1643766309259,0.13030712,2757.3,2757.0,0.26619104]
[1643766309458,0.13030712,2757.3,2757.0,0.53238208]
[1643766309916,0.13030712,2757.3,2757.2,0.70536227]
[1643766310117,0.3,2757.4,2757.2,0.70536227]
[1643766310318,0.13030712,2757.5,2757.2,0.70536227]
[1643766310918,0.13030712,2757.5,2757.1,0.39613257]
[1643766311118,0.13030712,2757.5,2757.0,0.53238208]
[1643766311521,0.43030712,2757.5,2757.0,0.53238208]
[1643766312721,0.43030712,2757.5,2757.0,0.53157811]
[1643766313352,0.43030712,2757.5,2757.2,0.79958675]
[1643766313757,0.43030712,2757.5,2757.0,0.53157811]
[1643766314156,3.40825951,2757.5,2757.0,0.53157811]
[1643766314357,1.0,2757.4,2756.8,0.9068635]
[1643766314555,2.09092494,2757.3,2757.2,0.26538707]
[1643766314759,2.22123206,2757.3,2757.2,0.53157811]
[1643766315457,0.13030712,2757.3,2757.2,0.53157811]
[1643766318309,0.13030712,2757.5,2757.2,0.53157811]
[1643766318910,0.03367549,2757.5,2757.2,0.53157811]
[1643766319116,1.53334791,2757.4,2757.2,0.53157811]
[1643766319612,1.53334791,2757.4,2757.2,0.26619104]
[1643766319814,1.53334791,2757.4,2756.9,0.9068165]
[1643766320115,1.53334791,2757.4,2757.3,0.53157811]
[1643766320959,0.03367549,2757.7,2757.3,0.53157811]
[1643766321159,1.53313218,2757.6,2757.3,0.53157811]
[1643766321559,1.53313218,2757.6,2757.4,0.90664]
[1643766321765,1.53313218,2757.6,2757.5,0.32339196]
[1643766321962,1.53313218,2757.6,2757.4,0.90664]
[1643766322262,1.10388653,2757.3,2756.9,1.1626]
[1643766322461,1.53327004,2757.2,2756.8,2.9014706]
[1643766322661,1.10388653,2757.3,2757.0,0.90676]
[1643766322861,1.10388653,2757.3,2757.0,1.8135286]
[1643766323266,1.10388653,2757.3,2757.0,4.09923083]
[1643766323463,0.1812,2757.8,2757.1,6.6]
[1643766323765,0.1812,2758.4,2757.2,2.93659392]
[1643766323971,0.1812,2758.4,2757.3,0.19396999]
[1643766324164,0.93901952,2759.0,2757.4,25.38438662]
[1643766324165,0.1812,2758.7,2757.4,25.38438662]
[1643766324371,0.1812,2758.9,2758.6,0.89691666]
[1643766324617,0.1812,2758.9,2757.8,0.523]
[1643766324822,0.1812,2758.9,2758.8,0.37968709]
[1643766325025,0.21487549,2758.9,2758.8,0.37968709]
[1643766325223,0.03367549,2758.9,2758.8,0.37968709]
[1643766326028,0.17837549,2759.0,2758.8,0.37968709]
[1643766326231,19.0976869,2759.6,2758.8,0.37968709]
[1643766326232,0.67746421,2759.6,2758.9,4.6312]
[1643766326429,1.95358887,2760.3,2758.9,4.6312]
[1643766326430,0.85866421,2760.0,2759.3,0.86849011]
[1643766326626,0.1812,2760.0,2759.3,0.86849011]
[1643766326825,0.85866421,2760.0,2759.3,0.86849011]
[1643766327041,0.1812,2760.0,2759.3,0.86849011]
[1643766327429,0.1811,2760.1,2759.9,0.39717586]
[1643766327826,0.145105,2760.3,2759.9,0.39717586]
[1643766328663,0.145105,2760.3,2760.2,0.91278908]
[1643766329065,0.1853262,2760.3,2760.2,0.91278908]
[1643766329366,0.1853262,2760.3,2759.9,0.39717586]
[1643766330171,0.1811,2760.2,2759.9,0.39717586]
[1643766330371,0.1811,2760.2,2759.2,1.9928396]
[1643766330372,0.1811,2760.2,2759.7,0.91146296]
[1643766330674,0.1811,2760.2,2759.2,1.9928396]
[1643766330675,0.25,2760.1,2759.2,0.1811]
[1643766330868,0.1811,2760.0,2758.8,0.1811]
[1643766331069,0.1811,2760.0,2758.6,0.1811]
[1643766331271,0.1311,2760.0,2758.6,0.1811]
[1643766331470,0.1311,2760.0,2759.6,0.39546048]
[1643766331769,0.1311,2760.0,2758.6,0.1811]
[1643766331770,0.1311,2760.0,2758.7,0.9060855]
[1643766331970,0.1311,2760.0,2758.6,0.1811]
[1643766332217,0.01276338,2759.8,2758.6,0.1811]
[1643766332413,0.1812,2759.7,2758.6,0.1811]
[1643766332710,0.25,2759.5,2758.6,0.1811]
[1643766332909,0.1812,2759.4,2758.9,0.35090439]
[1643766334112,0.1812,2759.7,2758.9,0.35090439]
[1643766334309,1.41450175,2760.2,2758.9,0.35090439]
[1643766334310,0.3,2759.9,2758.9,0.35090439]
[1643766334513,0.1812,2760.1,2758.9,0.35090439]
[1643766334914,0.1812,2760.1,2758.8,0.7700902]
[1643766334915,0.25,2760.0,2758.8,0.7700902]
[1643766335113,3.11058808,2759.9,2758.8,0.7700902]
[1643766335314,3.41058808,2759.9,2758.8,0.7700902]
[1643766335512,1.0,2759.8,2758.8,0.7700902]
[1643766335714,2.75799821,2759.7,2758.8,0.7700902]
[1643766335966,3.05799821,2759.7,2758.8,0.7700902]
[1643766336166,0.39509633,2759.3,2758.8,0.7700902]
[1643766336367,0.39509633,2759.3,2758.6,0.42785437]
[1643766336368,2.10095702,2759.2,2758.6,0.42785437]
[1643766336565,2.12279705,2759.2,2758.6,0.42785437]
[1643766336766,2.44816423,2759.2,2758.3,0.1812]
[1643766336969,4.54856423,2759.2,2758.3,0.1812]
[1643766337165,4.82826423,2759.2,2758.3,0.1812]
[1643766337566,4.82826423,2759.2,2758.4,0.8515314]
[1643766337768,0.1812,2759.1,2758.5,0.35782542]
[1643766337971,0.1812,2759.1,2758.3,0.1812]
[1643766338869,0.1812,2759.1,2758.4,0.71198594]
[1643766339467,0.1812,2759.1,2758.3,0.4474046]
[1643766339727,1.1812,2759.1,2757.8,0.1812]
[1643766339927,3.84418287,2759.0,2757.6,0.1812]
[1643766340123,3.84418287,2759.0,2757.5,3.1965]
[1643766340124,0.25,2758.7,2757.5,3.3777]
[1643766340319,2.69773695,2758.6,2757.5,3.3777]
[1643766340522,2.63000241,2758.6,2758.1,0.93342766]
[1643766340719,2.66390858,2758.6,2758.1,0.93342766]
[1643766340920,0.4812,2758.6,2758.1,1.32847198]
[1643766342321,2.59319604,2758.6,2757.5,4.2841726]
[1643766342822,1.0,2758.5,2757.5,3.3777]
[1643766343023,2.19291091,2758.4,2757.5,3.3777]
[1643766343222,2.49291091,2758.4,2757.5,3.3777]
[1643766343477,2.40854886,2758.4,2757.5,3.1965]
[1643766343679,0.4812,2758.4,2757.9,1.25229171]
[1643766343876,0.1812,2758.4,2757.9,1.25229171]
[1643766344576,0.1812,2758.6,2757.9,1.25229171]
[1643766345580,2.31338156,2758.6,2757.9,1.25229171]
[1643766345785,0.1812,2758.6,2757.9,1.25229171]
[1643766346181,0.4812,2758.6,2757.9,1.25229171]
[1643766346382,0.1812,2758.6,2757.9,1.25229171]
[1643766347428,0.1812,2758.6,2757.5,3.3777]
[1643766347429,2.30816323,2758.6,2757.5,3.3777]
[1643766347835,3.30816323,2758.6,2757.5,3.3777]
[1643766348029,1.53315174,2758.5,2757.5,3.1965]
[1643766348329,3.68240992,2758.4,2757.1,0.1812]
[1643766348530,3.68240992,2758.4,2757.4,1.13138929]
[1643766348531,0.38686877,2758.1,2757.4,1.13138929]
[1643766348828,0.4812,2758.0,2757.4,1.13138929]
[1643766349228,0.1812,2758.0,2757.4,1.13138929]
[1643766349627,0.1813,2758.2,2757.4,1.13138929]
[1643766349834,0.58357172,2758.2,2757.4,1.13138929]
[1643766350131,2.11537796,2758.1,2757.4,1.13138929]
[1643766350339,0.1812,2758.0,2757.4,1.13138929]
[1643766350969,0.1812,2758.2,2757.4,1.13138929]
[1643766351165,2.27979421,2758.2,2757.4,1.13138929]
[1643766351369,0.1812,2758.2,2757.4,1.13138929]
[1643766352771,1.1812,2758.2,2757.4,1.13138929]
[1643766352977,2.32577781,2758.1,2757.4,1.13138929]
[1643766353170,0.1812,2758.0,2757.4,1.13138929]
[1643766354922,0.1812,2758.2,2757.4,1.13138929]
[1643766358762,1.1812,2758.2,2757.4,1.13138929]
[1643766358966,0.1812,2758.2,2757.4,1.13138929]
[1643766359965,1.1812,2758.2,2757.4,1.13138929]
[1643766360771,2.07582311,2758.1,2757.4,1.13138929]
[1643766361767,1.1812,2758.2,2757.4,1.13138929]
[1643766363714,0.1812,2758.2,2757.4,1.13138929]
[1643766364114,1.1812,2758.2,2757.4,1.13138929]
[1643766364720,0.1812,2758.2,2757.4,1.13138929]
[1643766364927,0.1812,2758.3,2757.5,0.523]
[1643766365123,0.68019533,2759.3,2757.5,0.523]
[1643766365124,0.1812,2758.8,2758.7,0.41500804]
[1643766365321,0.28059789,2758.5,2758.4,0.68159148]
[1643766365524,0.28059789,2758.5,2758.4,1.07302966]
[1643766366375,0.28059789,2758.5,2758.4,0.68159148]
[1643766366576,1.81361023,2758.5,2758.4,0.68159148]
[1643766366775,1.81361023,2758.5,2757.8,4.9319]
[1643766366976,1.81361023,2758.5,2757.7,5.17238]
[1643766366977,0.28059789,2758.5,2757.7,5.17238]
[1643766367475,3.63583919,2758.4,2757.7,5.17238]
[1643766367676,2.11131965,2758.4,2757.7,5.17238]
[1643766367875,1.53311777,2758.3,2757.7,4.04396566]
[1643766368079,1.53311777,2758.3,2757.7,0.1812]